Cogmind - Beta 10.1 @@@ ROGUE MODE // 2020.10.26 @ 22:37:18 Player: aperiodic Result: Destroyed by B-75 Beast with Magnetic Acceleration Cannon Performance ------------- Evolutions (3) 1500 Regions Visited (13) 2600 Robots Destroyed (197) 985 Value Destroyed (5871) 5871 Prototype IDs (33) 660 Alien Tech Used (0) 0 Bonus (1572) 1572 TOTAL SCORE: 13188 Bonus ------- High Alert Combat Kills 463 Follower Combat Kills 109 Destroyed Z-Imprinter 1000 Cogmind --------- Core Integrity 0/700 Matter 275/300 Energy 18/100 System Corruption 1% Temperature Cool (0) Movement Hovering (150) Ox1 Location -6/Proximity Caves Parts ------- > --- POWER (1) -------- (None) > --- PROPULSION (2) --- Combat Airjet > --- UTILITY (8) ------ Experimental Heat Sink Large Storage Unit Zionite Metafield Generator Improved Sensor Array Advanced Signal Interpreter System Shield > --- WEAPON (2) ------- Phasing Sabre CR-A16's Behemoth Slayer > --- INVENTORY (10) --- Zionite Light DM Reactor Zionite Light DM Reactor Zionite Weapon Casing Zionite Light Carapace Makeshift Hacking Suite Makeshift Hacking Suite Thief Drone Bay (3/3) Advanced EMP Blaster Peak State ------------ > --- POWER ------------ Zionite Light DM Reactor > --- PROPULSION ------- Combat Airjet Zionite Glidesys II > --- UTILITY ---------- Large Storage Unit Zionite Biocell Zionite Metafield Generator Advanced Signal Interpreter Improved Propulsion Shielding Zionite Weapon Casing System Shield Thief Drone Bay > --- WEAPON ----------- Phasing Sabre Phasing Sabre > --- INVENTORY -------- Zionite Light DM Reactor Armored Treads Armored Treads Cooled Airjet Combat Airjet Improved Sensor Array Advanced Reaction Control System Improved Weapon Shielding EM Pulse Cannon Advanced EMP Blaster [Rating: 75] Favorites ----------- Power Micro Nuclear Core Engine Heavy Ion Engine Power Core Micro Nuclear Core Reactor Zionite Light DM Reactor Propulsion Light Treads Treads Light Treads Wheel Wheel Hover Unit Combat Airjet Utility Large Storage Unit Device Improved Sensor Array Storage Large Storage Unit Processor Advanced Signal Interpreter Hackware Hacking Suite Protection Improved Propulsion Shielding Weapon Improved Light Cannon Energy Cannon EM Pulse Cannon Ballistic Gun Improved Assault Rifle Ballistic Cannon Improved Light Cannon Launcher Advanced EMP Blaster Impact Weapon Power Maul Slashing Weapon Phasing Sabre Piercing Weapon Spear Build | -11 -10 -10 -9 -9 -9 -8 -8 -7 -7 -7 -7 -7 -6 ------- Run | Scr Mat Min Mat Min Exi Min Mat Fac Low Low Zio Dee Pro Slots Evolved 6 | . . . 2 . . . 2 2 . . . . . Power . | . . . . . . . . . . . . . . Propulsion . | . . . . . . . . . . . . . . Utility 6 | . . . 2 . . . 2 2 . . . . . Weapon . | . . . . . . . . . . . . . . Parts Attached 327 | 6 8 2 7 2 5 6 71 136 7 7 13 45 12 Power 15 | 1 1 . 1 . . 1 5 3 . . . 3 . Engine 4 | 1 . . 1 . . . 1 . . . . 1 . Core 10 | . 1 . . . . 1 4 3 . . . 1 . Reactor 1 | . . . . . . . . . . . . 1 . Propulsion 156 | 2 2 . 3 . . 3 35 82 4 4 6 13 2 Treads 76 | . 2 . 1 . . 3 22 38 2 2 4 2 . Leg . | . . . . . . . . . . . . . . Wheel 16 | 2 . . 2 . . . 12 . . . . . . Hover 64 | . . . . . . . 1 44 2 2 2 11 2 Flight . | . . . . . . . . . . . . . . Utility 94 | 1 4 . 2 . 2 . 13 38 3 3 2 20 6 Device 29 | . . . . . 1 . 1 12 1 2 . 9 3 Storage 13 | 1 3 . 1 . 1 . 2 1 . . 1 2 1 Processor 4 | . 1 . 1 . . . . 2 . . . . . Hackware 6 | . . . . . . . 2 4 . . . . . Protection 42 | . . . . . . . 8 19 2 1 1 9 2 Artifact . | . . . . . . . . . . . . . . Weapon 62 | 2 1 2 1 2 3 2 18 13 . . 5 9 4 Energy Gun . | . . . . . . . . . . . . . . Energy Cannon 2 | . . . . . . . . . . . 1 1 . Ballistic Gun 23 | 2 . . . 1 2 1 12 5 . . . . . Ballistic Cannon 4 | . . 2 . 1 1 . . . . . . . . Launcher 11 | . . . . . . 1 6 . . . 1 1 2 Special Weapon . | . . . . . . . . . . . . . . Impact Weapon 4 | . 1 . 1 . . . . 2 . . . . . Slashing Weapon 13 | . . . . . . . . 5 . . 2 5 1 Piercing Weapon 5 | . . . . . . . . 1 . . 1 2 1 Special Melee Weapon . | . . . . . . . . . . . . . . Unidentified Prototypes 15 | . . . . . 1 . 3 2 . . . 9 . Parts Lost 24 | . 2 . . . . . 7 4 . 1 . 1 9 Power 4 | . 1 . . . . . 2 . . . . . 1 Propulsion 6 | . . . . . . . 3 . . . . . 3 Utility 12 | . . . . . . . 2 3 . 1 . 1 5 Weapon 2 | . 1 . . . . . . 1 . . . . . Highest Loss Streak 5 | . 2 . . . . . 3 3 . 1 . 1 5 Average Slot Usage (%) 97 | . 97 100 94 100 100 100 97 96 93 96 97 93 96 Engine 2 | . 10 . 8 11 11 1 3 . . . . . . Core 5 | . 3 14 2 . . 9 5 7 7 7 7 1 . Treads 10 | . 26 28 6 . . 20 14 4 2 1 . 8 . Wheel 2 | . 1 . 15 22 22 1 2 . . . . . . Hover 5 | . . . . . . . . 10 12 14 14 6 14 Device 4 | . . . . . . . 2 5 5 9 13 10 14 Storage 20 | . 25 28 30 33 33 33 28 8 15 15 14 12 14 Processor 6 | . . . 8 11 11 11 2 10 15 9 7 7 7 Hackware 9 | . . . . . . . 7 27 15 13 7 7 7 Protection 6 | . . . . . . . 11 5 2 8 14 17 12 Ballistic Gun 7 | . 24 . . . 11 22 17 2 . . . . . Ballistic Cannon 4 | . . 26 14 21 10 . . . . . . . . Impact Weapon 1 | . 2 . 7 . . . . 1 7 7 2 . . Slashing Weapon 2 | . . . . . . . . 5 . . 8 6 5 Piercing Weapon 1 | . . . . . . . . 2 7 7 2 . 6 Naked Turns . | . . . . . . . . . . . . . . Heaviest Build 73 | 13 41 45 52 52 51 50 73 64 55 44 65 65 51 Greatest Support 50 | 26 40 40 40 26 26 40 42 44 44 44 44 50 50 Greatest Overweight (x) 6 | 1 1 1 1 1 1 1 6 1 1 . 2 1 1 Average Overweight (x) . | . . 1 1 1 1 1 1 . . . . . . Largest Inventory Capacity 22 | 6 16 16 16 16 16 16 22 22 14 14 14 14 14 Average Capacity 14 | 4 13 16 16 16 16 16 21 10 14 14 13 11 13 Most Carried 22 | 4 8 16 16 16 16 16 22 22 14 14 14 14 14 Average Carried 13 | 3 7 11 15 15 15 15 21 10 13 13 13 10 13 Final Capacity 22 | 6 16 16 16 16 16 16 22 14 14 14 14 14 10 Final Carried 22 | 4 8 16 16 16 16 16 22 14 13 14 14 14 8 Class Distribution -------------------- 53% | Mutant 25% | Hacker-Mutant 15% | Hauler-Mutant 3% | Derelict-Mutant Dominant Class ---------------- Mutant | -10/Materials Mutant | -10/Mines Mutant | -9/Materials Mutant | -9/Mines Mutant | -9/Exiles Mutant | -8/Mines Hauler-Mutant | -8/Materials Hacker-Mutant | -7/Factory Hacker-Mutant | -7/Lower Caves Hacker-Mutant | -7/Lower Caves Mutant | -7/Zion Mutant | -7/Deep Caves Mutant | -6/Proximity Caves Resources | -11 -10 -10 -9 -9 -9 -8 -8 -7 -7 -7 -7 -7 -6 ----------- Run | Scr Mat Min Mat Min Exi Min Mat Fac Low Low Zio Dee Pro Matter Collected 5522 | 191 564 92 30 165 . 304 1756 1470 90 75 10 595 180 Remotely . | . . . . . . . . . . . . . . Salvage Created 8209 | . 627 154 135 141 . 417 2799 2715 87 108 . 458 568 Parts 425 | . 33 12 6 11 . 28 164 119 2 9 . 18 23 Haulers Intercepted 18 | . 2 . 1 . . . 6 9 . . . . . Recyclers Shooed 9 | . 1 . . . . . 3 5 . . . . . Parts Field Recycled . | . . . . . . . . . . . . . . Retrieved Matter . | . . . . . . . . . . . . . . Parts Self-Destructed 25 | . . . . . . . . . 2 7 6 . 10 Prevented 13 | . . . . . . . . . . . . . 13 Kills | -11 -10 -10 -9 -9 -9 -8 -8 -7 -7 -7 -7 -7 -6 ------- Run | Scr Mat Min Mat Min Exi Min Mat Fac Low Low Zio Dee Pro Combat Hostiles Destroyed 135 | . 11 4 2 4 . 10 49 31 3 4 . 8 9 Melee 37 | . . . . . . . . 27 1 4 . 3 2 Guns 52 | . 11 . . . . 6 32 3 . . . . . Cannons 10 | . . 4 2 4 . . . . . . . . . AOE 22 | . . . . . . 4 15 . . . . 2 1 Classes Destroyed 16 | . 4 2 1 2 . 1 3 1 . . . 2 . Worker 18 | . . 1 . . . 2 4 11 . . . . . Builder 2 | . . . 1 1 . . . . . . . . . Tunneler 4 | . . . . . . 2 1 1 . . . . . Hauler 18 | . 2 . 1 . . . 6 9 . . . . . Recycler 7 | . 1 . . 1 . . 1 4 . . . . . Operator 5 | . . . . . . . 2 3 . . . . . Watcher 8 | . 1 . . . . . 4 3 . . . . . Swarmer 23 | . . . . 2 . 4 10 3 3 1 . . . Grunt 67 | . 11 2 2 1 . 5 26 14 . . . . 6 Brawler 4 | . . . . 1 . 1 2 . . . . . . Duelist 2 | . . . . . . . 1 . . . . . 1 Protector 1 | . . . . . . . 1 . . . . . . Sentry 18 | . . 2 . . . . 9 7 . . . . . Programmer 9 | . . . . . . . . 7 . . . . 2 Z-Light 5 | . . . . . . . . . . . . 5 . Assembled 2 | . . . . . . . . . . . . 2 . Wasp 3 | . . . . . . . . . . 3 . . . Best Kill Streak 8 | . 4 2 3 3 . 4 8 6 3 3 . 5 3 Combat Bots Only 8 | . 3 2 2 2 . 4 8 3 3 3 . 5 3 Max Kills in Single Turn 4 | . 1 1 1 2 . 4 2 1 1 1 . 1 1 Gunslinging . | . . . . . . . . . . . . . . Exploded 4 | . . . . . . 4 2 . . . . 1 1 Melee 1 | . . . . . . . . 1 1 1 . 1 1 Uniques/NPCs Destroyed 1 | . . . . . . . . . . . . 1 . Z-Imprinter (-7/Deep Caves) Combat | -11 -10 -10 -9 -9 -9 -8 -8 -7 -7 -7 -7 -7 -6 -------- Run | Scr Mat Min Mat Min Exi Min Mat Fac Low Low Zio Dee Pro Damage Taken 7635 | . 421 188 37 20 . 360 2258 1995 409 284 . 797 866 Core 1288 | . 87 13 . . . 57 406 317 81 52 . 79 196 Absorbed by Shields 50 | . . . . . . . . . . . . 50 . Core Remaining (%) 67 | 100 . 60 . . . 85 26 . . . . . . Volleys Fired 322 | . 40 9 7 12 . 26 171 23 . . . 8 26 Largest 2 | . 2 2 2 2 . 2 2 2 . . . 1 1 Hottest 78 | . 40 78 78 78 . 53 61 50 . . . 63 36 Shots Fired 598 | . 79 18 10 24 . 52 336 45 . . . 8 26 Gun 494 | . 79 . . . . 51 319 45 . . . . . Cannon 54 | . . 18 10 24 . . . . . . . 2 . Launcher 50 | . . . . . . 1 17 . . . . 6 26 Special . | . . . . . . . . . . . . . . Kinetic 546 | . 79 18 10 24 . 51 319 45 . . . . . Thermal . | . . . . . . . . . . . . . . Explosive 3 | . . . . . . 1 2 . . . . . . Electromagnetic 49 | . . . . . . . 15 . . . . 8 26 Robot Hit Streak 76 | . 19 10 2 7 . 22 76 19 . . . 1 2 Robot Miss Streak 5 | . 4 1 1 2 . 1 3 2 . . . 5 2 Penetration Max . | . . . . . . . . . . . . . . Secondary Targets 3 | . . . . . . . 3 . . . . . . Max Gunslinging Chain 1 | . . . . . . . 1 . . . . . . Shots Hit Robots 624 | . 62 11 4 16 . 43 253 199 9 5 . 13 9 Core Hits 267 | . 30 5 3 6 . 23 104 67 1 4 . 13 11 Critical Hits 13 | . . . . 3 . . 3 7 . . . . . Critical Kills 3 | . . . . . . . . 3 . . . . . Critical Parts Destroyed 9 | . . . . 2 . . 3 4 . . . . . Melee Attacks 355 | . 10 . 10 . . . . 215 13 15 39 24 29 Impact 83 | . 10 . 10 . . . . 39 11 13 . . . Slashing 233 | . . . . . . . . 156 . . 39 21 17 Piercing 39 | . . . . . . . . 20 2 2 . 3 12 Sneak Attacks 37 | . 2 . 1 . . . . 34 . . . . . Combat Hostiles 1 | . . . . . . . . 1 . . . . . Follow-up Attacks 23 | . . . . . . . . 17 2 1 . 2 1 Damage Inflicted 19425 | . 966 247 117 366 . 882 5185 9200 313 149 . 1116 884 Guns 5796 | . 814 . . . . 649 3696 637 . . . . . Cannons 663 | . . 217 80 366 . . . . . . . . . Explosions 2961 | . . . . . . 233 1467 . . . . 527 734 Melee 9912 | . 111 . 37 . . . . 8563 313 149 . 589 150 Ramming 93 | . 41 30 . . . . 22 . . . . . . Kinetic 6459 | . 814 217 80 366 . 649 3696 637 . . . . . Thermal 54 | . . . . . . . 54 . . . . . . Explosive 436 | . . . . . . 233 203 . . . . . . Electromagnetic 2471 | . . . . . . . 1210 . . . . 527 734 Impact 2326 | . 111 . 37 . . . . 1780 280 118 . . . Slashing 6828 | . . . . . . . . 6154 . . . 589 85 Piercing 758 | . . . . . . . . 629 33 31 . . 65 Highest Corruption 2 | . 2 2 . . . . . . . . . . 1 Average Corruption 1 | . 2 2 . . . . . . . . . . 1 Corruption Purged . | . . . . . . . . . . . . . . Effects 14 | . 3 11 . . . . . . . . . . . Message Errors 8 | . 1 7 . . . . . . . . . . . Heat Flow Errors 2 | . 1 1 . . . . . . . . . . . Energy Discharges 3 | . 1 2 . . . . . . . . . . . Data Loss (minor) 1 | . . 1 . . . . . . . . . . . Overload Shots . | . . . . . . . . . . . . . . Overflow Damage 1844 | . 32 . 15 6 . . 17 1657 57 6 . 51 3 Projectiles 6 | . . . . 6 . . . . . . . . . Explosions 25 | . . . . . . . 17 . . . . 5 3 Melee 1813 | . 32 . 15 . . . . 1657 57 6 . 46 . Knockbacks 13 | . 1 1 . 6 . . . 5 . . . . . Impact 6 | . 1 . . . . . . 5 . . . . . Kinetic 6 | . . 1 . 5 . . . . . . . . . Secondary 1 | . . . . 1 . . . . . . . . . Self-Inflicted Damage 114 | . . . . . . 7 32 . . . . . 75 Shots 7 | . . . . . . 1 2 . . . . . 4 Rammed 15 | . 7 3 . . . . 5 . . . . . . Targets Rammed 17 | . 8 3 . . . . 6 . . . . . . Kicked . | . . . . . . . . . . . . . . Crushed 2 | . 1 . . . . . 1 . . . . . . Highest Temperature 355 | . 96 198 51 66 . 3 135 48 . . . 355 43 Average Temperature 75 | . 21 83 29 23 . 2 24 24 . . . 207 9 Received Heat Transfer 2435 | . 243 60 21 6 . 180 927 654 12 18 . 197 117 Effects 4 | . . . . . . . . . . . . 4 . Energy Bleed 3 | . . . . . . . . . . . . 3 . Interference 1 | . . . . . . . . . . . . 1 . Siege Activations . | . . . . . . . . . . . . . . Robots Corrupted 11 | . . . . . . . 2 . . . . 3 6 Combat Hostiles 11 | . . . . . . . 2 . . . . 3 6 Parts Fried 34 | . . . 3 . . . 7 8 2 . . 7 7 Impact Corruptions 31 | . 1 . 1 . . . . 23 5 1 . . . Robots Melted . | . . . . . . . . . . . . . . Combat Hostiles . | . . . . . . . . . . . . . . Parts Melted . | . . . . . . . . . . . . . . Heat Transferred 50 | . . . . . . . 50 . . . . . . Parts Sabotaged . | . . . . . . . . . . . . . . Parts Stolen . | . . . . . . . . . . . . . . Parts Stripped . | . . . . . . . . . . . . . . Power Chain Reactions 4 | . . . . . . . 3 . . . . . 1 Missiles Intercepted . | . . . . . . . . . . . . . . Alert | -11 -10 -10 -9 -9 -9 -8 -8 -7 -7 -7 -7 -7 -6 ------- Run | Scr Mat Min Mat Min Exi Min Mat Fac Low Low Zio Dee Pro Peak Influence 905 | . 142 68 90 94 . 183 905 687 . . . . . Initial 343 | . . 31 26 34 . . . 343 . . . . . Average 237 | . 57 15 63 50 . 86 515 287 . . . . . Maximum Alert Level 3 | . . . . . . . 3 2 . . . . . Low Security (%) 62 | 100 100 100 100 100 . 100 19 44 . . . . . Level 1 14 | . . . . . . . 22 27 . . . . . Level 2 12 | . . . . . . . 13 27 . . . . . Level 3 10 | . . . . . . . 44 . . . . . . Level 4 . | . . . . . . . . . . . . . . Level 5 . | . . . . . . . . . . . . . . High Security . | . . . . . . . . . . . . . . Max Security . | . . . . . . . . . . . . . . Squads Dispatched 26 | . 4 . 4 . . . 5 13 . . . . . Investigation 10 | . 4 . 2 . . . 2 2 . . . . . Extermination 6 | . . . . . . . . 6 . . . . . Reinforcement 9 | . . . 2 . . . 2 5 . . . . . Assault 1 | . . . . . . . 1 . . . . . . Garrison . | . . . . . . . . . . . . . . Intercept . | . . . . . . . . . . . . . . Construction Impeded 1 | . . . . . . . 1 . . . . . . Haulers Reinforced 3 | . . . . . . . . 3 . . . . . Stealth | -11 -10 -10 -9 -9 -9 -8 -8 -7 -7 -7 -7 -7 -6 --------- Run | Scr Mat Min Mat Min Exi Min Mat Fac Low Low Zio Dee Pro Distress Signals 13 | . 1 1 . 1 . . 5 5 . . . . . Communications Jammed . | . . . . . . . . . . . . . . Distress Signals . | . . . . . . . . . . . . . . Times Spotted 257 | . 24 6 8 6 . 10 79 65 4 6 . 17 32 Peak Tracking Total 7 | . 4 2 5 3 . 4 7 5 3 4 . 6 4 Tactical Retreats 40 | . 2 1 . 3 . . 7 8 1 . . 5 13 Traps | -11 -10 -10 -9 -9 -9 -8 -8 -7 -7 -7 -7 -7 -6 ------- Run | Scr Mat Min Mat Min Exi Min Mat Fac Low Low Zio Dee Pro Traps Triggered 9 | . 3 . . . . . 1 5 . . . . . Indirectly . | . . . . . . . . . . . . . . Trap Hack Attempts . | . . . . . . . . . . . . . . Triggered . | . . . . . . . . . . . . . . Disarmed . | . . . . . . . . . . . . . . Reprogrammed . | . . . . . . . . . . . . . . Reused 1 | . . . . . . . . . . . . 1 . Traps Extracted . | . . . . . . . . . . . . . . Installed 1 | . . . . . . . . . . . . 1 . Triggered 1 | . . . . . . . . . 1 . . . . Exploded 1 | . . . . . . . 1 . . . . . . Machines | -11 -10 -10 -9 -9 -9 -8 -8 -7 -7 -7 -7 -7 -6 ---------- Run | Scr Mat Min Mat Min Exi Min Mat Fac Low Low Zio Dee Pro Machines Disabled 5 | . . . . . . . 5 . . . . . . Max in Single Turn 2 | . . . . . . . 2 . . . . . . Garrison Access 1 | . . . . . . . . 1 . . . . . Machines Sabotaged . | . . . . . . . . . . . . . . Garrisons Compromised . | . . . . . . . . . . . . . . Overloaded Fab Kills . | . . . . . . . . . . . . . . Fab Network Shutdowns 1 | . . . . . . . . 1 . . . . . Hacking | -11 -10 -10 -9 -9 -9 -8 -8 -7 -7 -7 -7 -7 -6 --------- Run | Scr Mat Min Mat Min Exi Min Mat Fac Low Low Zio Dee Pro Machines Accessed 51 | . 10 . 2 1 4 . 10 24 . . . . . Terminals 32 | . 8 . 2 . . . 7 15 . . . . . Fabricators 3 | . . . . . . . . 3 . . . . . Repair Stations 5 | . . . . . . . 1 4 . . . . . Recycling Units 3 | . 2 . . . . . . 1 . . . . . Scanalyzers 2 | . . . . . . . 2 . . . . . . Garrison Access 1 | . . . . . . . . 1 . . . . . Total Hacks 157 | . 36 . 6 1 4 . 28 82 . . . . . Successful 106 | . 19 . 2 1 4 . 16 64 . . . . . Failed 49 | . 16 . 4 . . . 12 17 . . . . . Catastrophic 5 | . 1 . . . . . 2 2 . . . . . Database Lockouts 2 | . 1 . . . . . . 1 . . . . . Manual 84 | . 27 . 3 . 1 . 15 38 . . . . . Terminals 118 | . 34 . 6 . . . 16 62 . . . . . Fabricators 8 | . . . . . . . . 8 . . . . . Repair Stations 16 | . . . . . . . 6 10 . . . . . Recycling Units 3 | . 2 . . . . . . 1 . . . . . Scanalyzers 6 | . . . . . . . 6 . . . . . . Garrison Access 1 | . . . . . . . . 1 . . . . . Terminal Hacks 48 | . 10 . . 1 4 . 2 31 . . . . . Record 4 | . . . . . 4 . . . . . . . . Part Schematic 1 | . . . . . . . . 1 . . . . . Robot Schematic 1 | . . . . . . . . 1 . . . . . Robot Analysis 2 | . 2 . . . . . . . . . . . . Prototype ID Bank 9 | . 3 . . . . . . 6 . . . . . Open Door 1 | . . . . 1 . . . . . . . . . Branch Access Points 1 | . . . . . . . . 1 . . . . . Terminal Index 2 | . 1 . . . . . . 1 . . . . . Fabricator Index 1 | . . . . . . . . 1 . . . . . Repair Station Index 1 | . . . . . . . . 1 . . . . . Alert Level 2 | . . . . . . . 1 1 . . . . . Unreport Threat 8 | . 1 . . . . . 1 6 . . . . . Locate Traps 6 | . 2 . . . . . . 4 . . . . . Transport Status 1 | . . . . . . . . 1 . . . . . Recall Extermination 1 | . . . . . . . . 1 . . . . . Recall Reinforcements 3 | . . . . . . . . 3 . . . . . Hauler Manifests 3 | . 1 . . . . . . 2 . . . . . Registered Components 1 | . . . . . . . . 1 . . . . . Fabricator Hacks 5 | . . . . . . . . 5 . . . . . Load Schematic 2 | . . . . . . . . 2 . . . . . Build 3 | . . . . . . . . 3 . . . . . Repair Station Hacks 16 | . . . . . . . 6 10 . . . . . Scan Component 8 | . . . . . . . 3 5 . . . . . Repair 8 | . . . . . . . 3 5 . . . . . Recycling Unit Hacks . | . . . . . . . . . . . . . . Scanalyzer 5 | . . . . . . . 5 . . . . . . Insert Component 2 | . . . . . . . 2 . . . . . . Analyze 3 | . . . . . . . 3 . . . . . . Garrison Access Hacks 1 | . . . . . . . . 1 . . . . . Seal Access 1 | . . . . . . . . 1 . . . . . Unauthorized Hacks 31 | . 9 . 2 . . . 3 17 . . . . . Terminals 25 | . 7 . 2 . . . 3 13 . . . . . Track 3 | . 2 . . . . . . 1 . . . . . Assimilate 4 | . . . . . . . . 4 . . . . . Botnet 13 | . 4 . 1 . . . 2 6 . . . . . Operators 5 | . 1 . 1 . . . 1 2 . . . . . Fabricators 3 | . . . . . . . . 3 . . . . . Report 1 | . . . . . . . . 1 . . . . . Siphon 2 | . . . . . . . . 2 . . . . . Repair Stations . | . . . . . . . . . . . . . . Recycling Units 3 | . 2 . . . . . . 1 . . . . . Tunnel 3 | . 2 . . . . . . 1 . . . . . Scanalyzers . | . . . . . . . . . . . . . . Garrison Access . | . . . . . . . . . . . . . . Data Cores Recovered 1 | . . . . . . . . 1 . . . . . Used . | . . . . . . . . . . . . . . Hacking Detections 40 | . 8 . 2 . . . 10 20 . . . . . Full Trace Events 5 | . . . 1 . . . 3 1 . . . . . Feedback Events . | . . . . . . . . . . . . . . Feedback Blocked . | . . . . . . . . . . . . . . Robot Schematics Acquired 1 | . . . . . . . . 1 . . . . . Robots Built . | . . . . . . . . . . . . . . Matter . | . . . . . . . . . . . . . . Time . | . . . . . . . . . . . . . . Total Robot Build Rating . | . . . . . . . . . . . . . . Part Schematics Acquired 3 | . . . . . . . 2 1 . . . . . Parts Built 4 | . . . . . . . . 4 . . . . . Matter 551 | . . . . . . . . 551 . . . . . Time 306 | . . . . . . . . 306 . . . . . Total Part Build Rating 20 | . . . . . . . . 20 . . . . . Parts Repaired 8 | . . . . . . . 3 5 . . . . . Time 247 | . . . . . . . 140 107 . . . . . Parts Recycled . | . . . . . . . . . . . . . . Recycled Matter . | . . . . . . . . . . . . . . Retrieved Matter . | . . . . . . . . . . . . . . Retrieved Components . | . . . . . . . . . . . . . . Parts Scanalyzed 2 | . . . . . . . 2 . . . . . . Part Schematics Acquired 2 | . . . . . . . 2 . . . . . . Parts Damaged . | . . . . . . . . . . . . . . Bothacking | -11 -10 -10 -9 -9 -9 -8 -8 -7 -7 -7 -7 -7 -6 ------------ Run | Scr Mat Min Mat Min Exi Min Mat Fac Low Low Zio Dee Pro Used RIF Installer . | . . . . . . . . . . . . . . Robots Hacked . | . . . . . . . . . . . . . . Non-combat . | . . . . . . . . . . . . . . Combat . | . . . . . . . . . . . . . . Robot Hacks Applied . | . . . . . . . . . . . . . . Relay Couplers Released . | . . . . . . . . . . . . . . Robots Rewired . | . . . . . . . . . . . . . . Allies Hacked 1 | . . . . . . . . 1 . . . . . Hacks Repelled . | . . . . . . . . . . . . . . Allies | -11 -10 -10 -9 -9 -9 -8 -8 -7 -7 -7 -7 -7 -6 -------- Run | Scr Mat Min Mat Min Exi Min Mat Fac Low Low Zio Dee Pro Total Allies 7 | . . 4 . . . . . 2 . . . 1 . Largest Group 4 | . . 4 1 . . . . 2 . . . 1 . Highest-Rated Group 118 | . . 71 16 . . . . 52 . . . 118 . Highest-Rated Ally 118 | . . 31 16 . . . . 26 . . . 118 . Total Orders 6 | . . . . . . . . . . . . 6 . RETURN 6 | . . . . . . . . . . . . 6 . Ally Attacks 64 | . . 17 6 . . . . . . . . 41 . Total Damage 615 | . . 142 64 . . . . . . . . 409 . Kills 8 | . . 1 . . . . . . . . . 7 . Allies Corrupted . | . . . . . . . . . . . . . . Allies Melted . | . . . . . . . . . . . . . . Intel | -11 -10 -10 -9 -9 -9 -8 -8 -7 -7 -7 -7 -7 -6 ------- Run | Scr Mat Min Mat Min Exi Min Mat Fac Low Low Zio Dee Pro Robot Analysis Total 2 | . 2 . . . . . . . . . . . . Derelict Logs Recovered 4 | . . 1 . 1 . . . . 1 . . . 1 Drone Launches 22 | . . . . . . . . . . . . 22 . Drone Recoveries 22 | . . . . . . . . . . . . 22 . Exploration | -11 -10 -10 -9 -9 -9 -8 -8 -7 -7 -7 -7 -7 -6 ------------- Run | Scr Mat Min Mat Min Exi Min Mat Fac Low Low Zio Dee Pro Turns Passed 17505 | 55 1552 1834 309 650 603 898 2955 3950 342 299 1165 1841 1052 Spaces Moved 12608 | 54 735 613 164 599 591 462 1273 3783 377 329 772 1606 1250 Core 26 | 26 . . . . . . . . . . . . . Treads 3453 | . 635 613 36 . . 423 960 225 14 3 28 516 . Legs . | . . . . . . . . . . . . . . Wheels 1798 | 28 100 . 128 599 591 39 313 . . . . . . Hover 7331 | . . . . . . . . 3558 363 326 744 1090 1250 Flight . | . . . . . . . . . . . . . . Fastest Speed 33 | 50 90 180 100 100 100 100 100 61 76 76 52 33 33 Average Speed 104 | 74 160 180 117 100 100 173 157 71 80 76 136 101 57 Slowest Speed 210 | 100 180 180 180 100 100 180 185 190 190 170 210 190 150 Overloaded Moves 3 | . . . . . . . . . . . 3 . . Propulsion Burnouts . | . . . . . . . . . . . . . . Robots Hopped . | . . . . . . . . . . . . . . Cave-ins Triggered . | . . . . . . . . . . . . . . Exploration Rate (%) 70 | 4 95 93 24 97 93 89 90 79 56 49 79 76 63 Regions Visited 13 Branch Regions 9 Pre-discovered Areas 8 | . 2 1 . 1 . . . 1 1 . 2 . . Known Exits Taken 5 | . . . . . . . . 1 1 1 1 1 . Unknown Exits Taken 8 | 1 1 1 1 1 1 1 1 . . . . . . Scrap Searched 15 | . . 2 . 1 . 1 . . 3 6 1 . 1 Spaces Dug 57 | . 4 . 5 . . . 2 23 . . 3 4 16 Terrain Destroyed 109 | . 4 2 5 2 . 9 34 23 . . 3 4 23 Melee 55 | . 4 . 5 . . . . 23 . . 3 4 16 Projectile 4 | . . 2 . 2 . . . . . . . . . AOE 50 | . . . . . . 9 34 . . . . . 7 Terrain Rammed . | . . . . . . . . . . . . . . Walls Destroyed . | . . . . . . . . . . . . . . Machines Disabled . | . . . . . . . . . . . . . . Actions | -11 -10 -10 -9 -9 -9 -8 -8 -7 -7 -7 -7 -7 -6 --------- Run | Scr Mat Min Mat Min Exi Min Mat Fac Low Low Zio Dee Pro Total 15898 | 66 1008 1323 256 627 602 508 1922 4701 396 353 835 1787 1514 Wait 2001 | 2 195 687 57 6 . 7 322 488 . . . 41 196 Move 12595 | 53 734 612 163 598 590 461 1272 3782 376 328 771 1605 1250 Hop . | . . . . . . . . . . . . . . Pick Up 151 | 5 9 9 6 4 3 3 38 26 1 3 11 31 2 Fast Attach 37 | 5 2 . 1 1 1 1 9 10 . 1 2 4 . Attach 56 | 1 2 . 2 . 1 . 10 9 1 2 2 18 8 Detach 10 | . . . . . . . 1 1 . . . 6 2 Swap 234 | . 4 2 4 1 3 5 52 117 6 4 9 23 4 Drop 147 | . 4 1 6 5 4 5 41 37 1 2 9 31 1 Fire 322 | . 40 9 7 12 . 26 171 23 . . . 8 26 Melee 313 | . 10 . 10 . . . . 194 11 13 31 19 25 Ram . | . . . . . . . . . . . . . . Kick . | . . . . . . . . . . . . . . Crush 17 | . 8 3 . . . . 6 . . . . . . Escape Stasis 14 | . . . . . . . . 14 . . . . . Rewire . | . . . . . . . . . . . . . . Trap 1 | . . . . . . . . . . . . 1 . Miscellaneous . | . . . . . . . . . . . . . . Route ------- -11/Scrapyard -10/Materials (discovered 4 exits: *Mat x3 / [*Min]) -10/Mines (discovered 2 exits: *Mat x2) -9/Materials -9/Mines (discovered 3 exits: *Mat x2 / *Exi) -9/Exiles (discovered 2 exits: [*Min x2]) -8/Mines (discovered 2 exits: *Mat x2) -8/Materials (discovered 3 exits: *Fac x3) -7/Factory (discovered 6 exits: *Fac x3 / *Sto / *Low x2) -7/Lower Caves -7/Lower Caves -7/Zion (discovered 2 exits: *Dee / [*Pro]) -7/Deep Caves -6/Proximity Caves History --------- Turn | Location | Event 11 | -11/Scrapyard | Discovered new exit (range 16) 56 | -11/Scrapyard | Entered Materials 135 | -10/Materials | Discovered new exit (range 8) 304 | -10/Materials | Build established: Mutant 384 | -10/Materials | Discovered new exit (range 15) 489 | -10/Materials | Central database locked down 547 | -10/Materials | Discovered new exit (range 9) 1278 | -10/Materials | Discovered new exit (range 5) 1608 | -10/Materials | Entered Mines 1660 | -10/Mines | Assembled infested the area 2512 | -10/Mines | Discovered new exit (range 9) 2749 | -10/Mines | Assisted by bots powering up and referring to "LRC-V3" 2898 | -10/Mines | Received a Mining Laser from a helpful Derelict 3354 | -10/Mines | Discovered new exit (range 5) 3442 | -10/Mines | Entered Materials 3442 | -9/Materials | Accompanied by 1 ally 3442 | -9/Materials | Evolved 2 slots: Utility x2 3743 | -9/Materials | Discovered new exit (range 9) 3751 | -9/Materials | Entered Mines 3787 | -9/Mines | Met a Derelict bent on vengeance 3871 | -9/Mines | Discovered new exit (range 10) 3963 | -9/Mines | A weapon hastily lodged in a ceiling crevice suddenly fell to the ground 4152 | -9/Mines | Discovered new exit (range 10) 4290 | -9/Mines | Received a Rocket Launcher from a helpful Derelict 4312 | -9/Mines | Found the Drone Emporium 4318 | -9/Mines | Found Prototype Device 4331 | -9/Mines | Deemed a non-threat by the Exiles lab entrance 4332 | -9/Mines | Discovered new exit (range 5) 4354 | -9/Mines | Learned location of Storage (-7) 4401 | -9/Mines | Entered Exiles 4401 | -9/Exiles | Found Exiles lab abandoned 4839 | -9/Exiles | Discovered new exit (range 10) 4945 | -9/Exiles | Discovered new exit (range 15) 4983 | -9/Exiles | Identified Thief Drone Bay 5004 | -9/Exiles | Entered Mines 5099 | -8/Mines | Discovered new exit (range 7) 5378 | -8/Mines | Discovered new exit (range 13) 5902 | -8/Mines | Entered Materials 5902 | -8/Materials | Evolved 2 slots: Utility x2 6243 | -8/Materials | Lost 3 parts (1p2n) 6715 | -8/Materials | Build established: Hauler-Mutant 6915 | -8/Materials | Core integrity fell below 50% 7096 | -8/Materials | Discovered new exit (range 14) 7337 | -8/Materials | Repaired Imp. Assault Rifle 7377 | -8/Materials | Repaired Adv. Treads 7429 | -8/Materials | Repaired Imp. Assault Rifle 7502 | -8/Materials | First assault squad dispatched 7554 | -8/Materials | Destroyed 8 combat bots 7778 | -8/Materials | Discovered new exit (range 6) 8320 | -8/Materials | Discovered new exit (range 11) 8857 | -8/Materials | Entered Factory 8857 | -7/Factory | Evolved 2 slots: Utility x2 8985 | -7/Factory | Discovered new exit (range 10) 8989 | -7/Factory | Identified exit to Lower Caves 9180 | -7/Factory | Discovered new exit (range 6) 9183 | -7/Factory | Identified exit to Factory 9221 | -7/Factory | Build established: Hacker-Mutant 9363 | -7/Factory | Discovered new exit (range 10) 9569 | -7/Factory | Discovered exit to Factory (range 5) 9980 | -7/Factory | Lost 3 parts (2u1w) 10238 | -7/Factory | Fabricated Cmb. Airjet? 10349 | -7/Factory | Discovered exit to Factory (range 5) 10417 | -7/Factory | Fabricated System Shield? 10712 | -7/Factory | Repaired Imp. Propulsion Shielding 10734 | -7/Factory | Repaired Arm. Treads 10804 | -7/Factory | Fabricated Exp. Melee Analysis Suite? 11067 | -7/Factory | Local fabrication network quarantined 11127 | -7/Factory | Repaired Imp. Light Armor Plating? 11370 | -7/Factory | Central database locked down 11370 | -7/Factory | Identified exit to Storage 11763 | -7/Factory | Repaired Arm. Treads? 11860 | -7/Factory | Repaired Arm. Treads 12807 | -7/Factory | Entered Lower Caves 12808 | -7/Lower Caves | Encountered a Warlord checkpoint 12894 | -7/Lower Caves | Core integrity fell below 50% 13124 | -7/Lower Caves | Discovered new exit (range 14) 13133 | -7/Lower Caves | Identified exit to Lower Caves 13149 | -7/Lower Caves | Entered another Lower Caves area 13181 | -7/Lower Caves | Ambushed by wild Derelicts 13351 | -7/Lower Caves | Discovered new exit (range 14) 13360 | -7/Lower Caves | Identified exit to Zion 13448 | -7/Lower Caves | Entered Zion 13463 | -7/Zion | Found CR-A16's Pointy Stick 13560 | -7/Zion | Discovered new exit (range 13) 13655 | -7/Zion | Identified exit to Deep Caves 13681 | -7/Zion | Given A8's code to call for help 13693 | -7/Zion | Build established: Mutant 13802 | -7/Zion | Learned location of Extension (-6) 14203 | -7/Zion | Build established: Derelict-Mutant 14606 | -7/Zion | Saw the warning signs outside the Deep Caves entrance 14613 | -7/Zion | Entered Deep Caves 14615 | -7/Deep Caves | Met 5H-AD0 14733 | -7/Deep Caves | Build established: Mutant 15028 | -7/Deep Caves | Attacked by Z-Imprinter 15045 | -7/Deep Caves | Destroyed Z-Imprinter 15098 | -7/Deep Caves | Found Prototype Device 15099 | -7/Deep Caves | Identified Zio. Metafield Generator 15200 | -7/Deep Caves | Found Prototype Protection 15200 | -7/Deep Caves | Identified Zio. Weapon Casing 15449 | -7/Deep Caves | Z-Facility disabled 15719 | -7/Deep Caves | Found Prototype Protection 15720 | -7/Deep Caves | Identified Zio. Heavy Carapace 16073 | -7/Deep Caves | Found Zio. Heavy Carapace 16324 | -7/Deep Caves | Discovered new exit (range 7) 16454 | -7/Deep Caves | Identified exit to Proximity Caves 16454 | -7/Deep Caves | Entered Proximity Caves 16554 | -6/Proximity Caves | Learned Factory stockpile data 16901 | -6/Proximity Caves | Spotted B-75 Beast 17231 | -6/Proximity Caves | Core integrity fell below 20% 17493 | -6/Proximity Caves | Revealed the true nature of CR-A16's Pointy Stick 17506 | -6/Proximity Caves | Destroyed by B-75 Beast with Magnetic Acceleration Cannon Last Messages --------------- 17353_ Carbon-fiber Leg self-destruct mechanism malfunctions. 17359_ Adv. Heat Sink self-destruct mechanism malfunctions. 17360_ Carbon-fiber Leg self-destruct mechanism malfunctions. 17363_ Acquired 45 matter. 17365_ Hvy. Laser self-destruct mechanism malfunctions. 17367_ Carbon-fiber Leg self-destruct mechanism malfunctions. 17454_ Dropped Med. Storage Unit. 17458_ Acquired Adv. EMP Blaster. 17460_ Acquired Thief Drone Bay. 17462_ Knocked back. 17479_ Zio. Glidesys I destroyed. 17479_ Knocked back. 17483_ Zio. Biocell destroyed. 17483_ Knocked back. 17486_ Zio. Light Carapace destroyed. 17486_ Knocked back. 17489_ Zio. Light DM Reactor destroyed. CR-A16's Pointy Stick's crusty surface crumbles away to reveal its sleek core, which rumbles to life. 17500_ Cmb. Airjet destroyed. Map ----- +----------------------------------------------------+ | #?# ## #??????# ## #???## #### ##??????? | | #### # ##?????##??##??## #### #???????? | | #?## #### ##????????????# #?# ##??????? | | #??# #??## #########????# #?### #??????? | | ##?# #???## ##???# ##???# # #?????? | | ### #????# ##??# #????## ####?????? | | ### #????# #### #????# ## #???????? | | #?### #???### #????##??##???????? | | #????##?????# ##?????????????????? | | ###????#####?## #??????????????????? | | ##?????## ## # #?????????????????? | | ???????# ### ##?????????????????? | | ???????## ##??##??????????????????? | | ????###?## ##???????????????????????? | | ????# ??## #????????????????????????? | | ????# #??## ##????????????????????????? | | ?????# ##### ###?????????????? ??????????? | | ?????# ## ## ##??????????????? ???????? | | ????## ######?????????????? ?????? | | ???## ### #?????????????? ???? | | ???# ##????????????? ????? | | ???# ##??????????? ###??? | | ??## #??????????? #??? | | ??# #####??????? #??? | | ??# % #??????? #??? | | ??#### @ ##????? ##?? | | ?????# ## ### ####; ;####?? ? | | ###### ## #### ##?## ##? ??? | | ## ### ### ### ;# #??????? | | ##### ##?## BB #??????? | | #???# #??# BB;# #?????? | | #???## #??# ;##??? #????? | | #????# ####??# ##????????????? | | #??### ##??### #####???????????? | | ###?## #??# # # #???????????? | | ##?### #??# ! #????????????? | | ### #### #????????????? | | ## #??# #????????????? | | #?# #???# ###??????????? | | ?? #????### ### ######### # #??##??????? | | ?? ???????###??## ##?# #### #??????? | | ?# # ?????????????###?# #???????? | | ????#??????????????????# ###### ##???????? | | ???????????????????????# ???????## ##????????? | | ?????????????????????????????????## ###?????????? | | ??????????????????????????????????# #???????????? | | ??????????????????????????????????# #???????????? | | ??????????????????????????????????# #???????????? | | ??????????????????????????????????# #???????????? | | ??????????????????????????????????# #???????????? | +----------------------------------------------------+ Best States ------------- Heat Dissipation 60 Energy Generation 27 Energy Capacity 1100 Matter Stores 500 Matter Capacity 500 Sight Range 18 Robot Scan Range 16 Terrain Scan Density 10 Heat Shielding 100 Armor Coverage 1600 Resistance: KI 30 Propulsion Shielding 66 Weapon Shielding 100 Evasion (%) 67 Targeting Accuracy 5 Melee Accuracy 12 Recoil Reduction 2 Offensive Hacking 40 Defensive Hacking 10 Item Schematics ----------------- Cmb. Airjet | -8/Materials | Scanalyzed Hacking Suite | -8/Materials | Scanalyzed System Shield | -7/Factory | Hacked Robot Schematics ------------------ L-41 Fighter | -7/Factory | Hacked Fabricated ------------ Cmb. Airjet | x2 | -7/Factory System Shield | x1 | -7/Factory Exp. Melee Analysis Suite | x1 | -7/Factory | Preloaded Alien Tech Used ----------------- None Achievements -------------- None Challenges ------------ None Game ------ Seed ShadingFirePod Manual? 0 Play Time 04:14:28 Cumulative 152.1 hours Start 2020.10.26 @ 01:26:00 End 2020.10.26 @ 22:37:18 Sessions 9 Manual Loads 0 Difficulty Rogue Special Mode None Game No. 67 Rogue 63 Adventurer 4 Explorer 0 Win Type - Total 1 Types 1/0/0/0/0/0/0/0/0 Lore% 54 Gallery% 66 Achievement% 50 Wizard Run 0 Options --------- ASCII 1 Keyboard 0 Movement Arrows Keybinds 0 Fullscreen 1 Font 18/Smallcaps Map View 76x50 Tactical HUD 1 Map Filters NONE Filters NONE Steam 1 RUN: aa4990cc-e44f-4cc0-8242-a41c2a6e5360